Cogmind - Beta 12 @@@ ROGUE MODE // 2023.07.27 @ 20:20:07 Player: ILikeVoltron Result: Destroyed by as-02459 with Assembled Heavy Rifle Performance ------------- Evolutions (0) 0 Regions Visited (2) 400 Robots Destroyed (9) 45 Value Destroyed (125) 125 Prototype IDs (2) 40 Alien Tech Used (0) 0 Bonus (0) 0 TOTAL SCORE: 610 Bonus ------- None Cogmind --------- Core Integrity 0/250 Matter 256/300 Energy 90/100 System Corruption 1% Temperature Hot (205) Movement Core (400) Ox7 Location -10/Mines Parts ------- > --- POWER (1) -------- (None) > --- PROPULSION (2) --- (None) > --- UTILITY (2) ------ Large Storage Unit > --- WEAPON (2) ------- Maul > --- INVENTORY (15) --- Light Treads Light Treads Wheel Medium Matter Pod (96) Structural Scanner Assault Rifle Peak State ------------ > --- POWER ------------ Light Ion Engine > --- PROPULSION ------- Aluminum Leg Aluminum Leg > --- UTILITY ---------- Small Storage Unit Visual Processing Unit > --- WEAPON ----------- Assault Rifle Maul > --- INVENTORY -------- Ion Engine Light Treads Light Treads Wheel Compact Wheel Small Laser Assault Rifle [Rating: 9] Favorites ----------- Power Light Ion Engine Engine Light Ion Engine Propulsion Aluminum Leg Leg Aluminum Leg Utility Visual Processing Unit Storage Small Storage Unit Processor Visual Processing Unit Weapon Assault Rifle Energy Gun Small Laser Ballistic Gun Assault Rifle Ballistic Cannon Light Cannon Impact Weapon Maul Build | -11 -10 -10 ------- Run | Jun Mat Min Slots Evolved . | . . . Power . | . . . Propulsion . | . . . Utility . | . . . Weapon . | . . . Parts Attached 10 | . 7 3 Power 1 | . 1 . Engine 1 | . 1 . Core . | . . . Reactor . | . . . Propulsion 1 | . 1 . Treads . | . . . Leg 1 | . 1 . Wheel . | . . . Hover . | . . . Flight . | . . . Utility 2 | . 2 . Device . | . . . Storage 1 | . 1 . Processor 1 | . 1 . Hackware . | . . . Protection . | . . . Artifact . | . . . Weapon 6 | . 3 3 Energy Gun . | . . . Energy Cannon . | . . . Ballistic Gun 2 | . 2 . Ballistic Cannon 2 | . . 2 Launcher . | . . . Special Weapon . | . . . Impact Weapon 2 | . 1 1 Slashing Weapon . | . . . Piercing Weapon . | . . . Special Melee Weapon . | . . . Unidentified Prototypes . | . . . Parts Lost 7 | . . 7 Power 1 | . . 1 Propulsion 2 | . . 2 Utility 1 | . . 1 Weapon 3 | . . 3 Highest Loss Streak 7 | . . 7 To Critical Strikes 1 | . . 1 Average Slot Usage (%) 98 | . 100 81 Engine 13 | . 14 7 Leg 27 | . 28 21 Storage 14 | . 14 14 Processor 13 | . 14 10 Ballistic Gun 13 | . 14 7 Ballistic Cannon 1 | . . 17 Impact Weapon 12 | . 13 3 Naked Turns . | . . . Heaviest Build 28 | 11 28 28 Greatest Support 20 | 20 20 20 Greatest Overweight (x) 1 | . 1 1 Average Overweight (x) . | . . 1 Largest Inventory Capacity 15 | 8 15 15 Average Capacity 9 | 8 8 15 Most Carried 8 | 6 8 8 Average Carried 7 | 6 7 7 Final Capacity 15 | 8 15 15 Final Carried 8 | 6 8 6 Class Distribution -------------------- 100% | Mutant Dominant Class ---------------- Mutant | -10/Materials Mutant | -10/Mines Resources | -11 -10 -10 ----------- Run | Jun Mat Min Matter Collected 377 | 200 175 2 Remotely . | . . . Salvage Created 363 | . 327 36 Parts 14 | . 14 . Haulers Intercepted 1 | . 1 . Recyclers Shooed . | . . . Parts Field Recycled . | . . . Retrieved Matter . | . . . Parts Self-Destructed . | . . . Prevented . | . . . Kills | -11 -10 -10 ------- Run | Jun Mat Min Combat Hostiles Destroyed 8 | . 4 4 Melee 1 | . 1 . Guns 2 | . 2 . Cannons 3 | . . 3 Classes Destroyed 6 | . 5 1 Builder 2 | . 2 . Hauler 1 | . 1 . Recycler 2 | . 2 . Swarmer 2 | . 2 . Grunt 2 | . 2 . Assembled 4 | . . 4 Best Kill Streak 6 | . 6 4 Combat Bots Only 4 | . 3 4 Max Kills in Single Turn 2 | . 1 2 Gunslinging . | . . . Exploded . | . . . Melee 1 | . 1 . Uniques/NPCs Destroyed . | . . . Combat | -11 -10 -10 -------- Run | Jun Mat Min Damage Taken 1010 | . 106 904 Core 253 | . . 253 Absorbed by Shields . | . . . Core Remaining (%) 100 | 100 . . Volleys Fired 10 | . 3 7 Largest 2 | . 1 2 Hottest 70 | . 20 70 Shots Fired 16 | . 3 13 Gun 4 | . 3 1 Cannon 12 | . . 12 Launcher . | . . . Special . | . . . Kinetic 16 | . 3 13 Thermal . | . . . Explosive . | . . . Electromagnetic . | . . . Robot Hit Streak 8 | . 3 8 Robot Miss Streak 1 | . . 1 Penetration Max . | . . . Secondary Targets . | . . . Shots Hit Robots 23 | . 11 12 Core Hits 11 | . 5 6 Critical Kills 1 | . 1 . Critical Parts Destroyed 2 | . 2 . Critical Strikes 3 | . 3 . Destroy 1 | . 1 . Smash 2 | . 2 . Melee Attacks 20 | . 17 3 Impact 20 | . 17 3 Slashing . | . . . Piercing . | . . . Sneak Attacks 6 | . 6 . Combat Hostiles . | . . . Follow-up Attacks . | . . . Damage Inflicted 874 | . 633 241 Guns 46 | . 36 10 Cannons 190 | . . 190 Explosions . | . . . Melee 638 | . 597 41 Ramming . | . . . Kinetic 236 | . 36 200 Thermal . | . . . Explosive . | . . . Electromagnetic . | . . . Impact 638 | . 597 41 Slashing . | . . . Piercing . | . . . Highest Corruption 1 | . . 1 Average Corruption 1 | . . 1 Corruption Purged . | . . . Corruption Blocked . | . . . Overload Shots . | . . . Overflow Damage 302 | . 278 24 Projectiles 23 | . . 23 Explosions . | . . . Melee 279 | . 278 1 Knockbacks 4 | . . 4 Impact . | . . . Kinetic 2 | . . 2 Secondary 2 | . . 2 Self-Inflicted Damage . | . . . Shots . | . . . Rammed . | . . . Targets Rammed . | . . . Kicked . | . . . Crushed . | . . . Highest Temperature 240 | . . 240 Average Temperature 130 | . . 130 Received Heat Transfer 516 | . 36 480 Effects 1 | . . 1 Interference 1 | . . 1 Siege Activations . | . . . Robots Corrupted . | . . . Combat Hostiles . | . . . Parts Fried 4 | . 4 . Impact Corruptions 7 | . 6 1 Robots Melted . | . . . Combat Hostiles . | . . . Parts Melted . | . . . Heat Transferred . | . . . Parts Sabotaged . | . . . Parts Stolen . | . . . Parts Stripped . | . . . Power Chain Reactions . | . . . Missiles Intercepted . | . . . Alert | -11 -10 -10 ------- Run | Jun Mat Min Peak Influence 196 | . 196 76 Initial 76 | . . 76 Average 107 | . 114 49 Maximum Alert Level . | . . . Low Security (%) 100 | 100 100 100 Level 1 . | . . . Level 2 . | . . . Level 3 . | . . . Level 4 . | . . . Level 5 . | . . . High Security . | . . . Max Security . | . . . Squads Dispatched . | . . . Investigation . | . . . Extermination . | . . . Reinforcement . | . . . Assault . | . . . Garrison . | . . . Intercept . | . . . Searches Triggered . | . . . Construction Impeded . | . . . Haulers Reinforced . | . . . Active Scanning Responses . | . . . Cargo Convoy Interrupts . | . . . Stealth | -11 -10 -10 --------- Run | Jun Mat Min Distress Signals . | . . . Communications Jammed . | . . . Distress Signals . | . . . Times Spotted 28 | . 8 20 Peak Tracking Total 20 | . 3 20 Tactical Retreats 1 | . 1 . Traps | -11 -10 -10 ------- Run | Jun Mat Min Traps Triggered . | . . . Indirectly . | . . . Trap Hack Attempts . | . . . Triggered . | . . . Disarmed . | . . . Reprogrammed . | . . . Reused . | . . . Traps Extracted . | . . . Installed . | . . . Triggered . | . . . Machines | -11 -10 -10 ---------- Run | Jun Mat Min Machines Disabled . | . . . Max in Single Turn . | . . . Machines Repaired . | . . . Machines Sabotaged . | . . . Overloaded Fab Kills . | . . . Hacking | -11 -10 -10 --------- Run | Jun Mat Min Machines Accessed 3 | . 3 . Terminals 3 | . 3 . Fabricators . | . . . Repair Stations . | . . . Recycling Units . | . . . Scanalyzers . | . . . Garrison Access . | . . . Total Hacks 7 | . 7 . Successful 6 | . 6 . Failed 1 | . 1 . Catastrophic . | . . . Database Lockouts . | . . . Manual 1 | . 1 . Terminals 7 | . 7 . Fabricators . | . . . Repair Stations . | . . . Recycling Units . | . . . Scanalyzers . | . . . Garrison Access . | . . . Terminal Hacks 5 | . 5 . Prototype ID Bank 1 | . 1 . Emergency Access Points 2 | . 2 . Terminal Index 1 | . 1 . Locate Traps 1 | . 1 . Fabricator Hacks . | . . . Repair Station Hacks . | . . . Recycling Unit Hacks . | . . . Scanalyzer . | . . . Garrison Access Hacks . | . . . Unauthorized Hacks 1 | . 1 . Terminals 1 | . 1 . Track 1 | . 1 . Fabricators . | . . . Repair Stations . | . . . Recycling Units . | . . . Scanalyzers . | . . . Garrison Access . | . . . Data Cores Recovered . | . . . Used . | . . . Hacking Detections 2 | . 2 . Full Trace Events . | . . . Feedback Events . | . . . Feedback Blocked . | . . . Robot Schematics Acquired . | . . . Robots Built . | . . . Authchips . | . . . Time . | . . . Total Robot Build Rating . | . . . Part Schematics Acquired . | . . . Parts Built . | . . . Authchips . | . . . Time . | . . . Total Part Build Rating . | . . . Parts Repaired . | . . . Time . | . . . Parts Recycled . | . . . Recycled Matter . | . . . Retrieved Matter . | . . . Retrieved Components . | . . . Parts Scanalyzed . | . . . Part Schematics Acquired . | . . . Parts Damaged . | . . . Bothacking | -11 -10 -10 ------------ Run | Jun Mat Min Used RIF Installer . | . . . Robots Hacked . | . . . Non-combat . | . . . Combat . | . . . Robot Hacks Applied . | . . . Relay Couplers Released . | . . . Fabnet Peak Effective % . | . . . Robots Rewired . | . . . Allies Hacked . | . . . Hacks Repelled . | . . . Allies | -11 -10 -10 -------- Run | Jun Mat Min Total Allies . | . . . Largest Group . | . . . Highest-Rated Group . | . . . Highest-Rated Ally . | . . . Total Orders . | . . . Ally Attacks . | . . . Total Damage . | . . . Kills . | . . . Allies Corrupted . | . . . Allies Melted . | . . . Intel | -11 -10 -10 ------- Run | Jun Mat Min Robot Analysis Total . | . . . Derelict Logs Recovered . | . . . Drone Launches . | . . . Drone Recoveries . | . . . Exploration | -11 -10 -10 ------------- Run | Jun Mat Min Turns Passed 398 | 3 355 40 Spaces Moved 216 | 3 211 2 Core . | . . . Treads . | . . . Legs 216 | 3 211 2 Wheels . | . . . Hover . | . . . Flight . | . . . Fastest Speed 120 | 120 120 190 Average Speed 128 | 120 128 190 Slowest Speed 190 | 120 190 190 Overloaded Moves . | . . . Propulsion Burnouts . | . . . Robots Hopped . | . . . Cave-ins Triggered . | . . . Exploration Rate (%) 14 | 2 38 3 Regions Visited 2 Branch Regions 1 Pre-discovered Areas . | . . . Known Exits Taken . | . . . Unknown Exits Taken 2 | 1 1 . Scrap Searched . | . . . Spaces Dug 6 | . 6 . Terrain Destroyed 6 | . 6 . Melee 6 | . 6 . Projectile . | . . . AOE . | . . . Terrain Rammed . | . . . Walls Destroyed . | . . . Machines Disabled . | . . . Actions | -11 -10 -10 --------- Run | Jun Mat Min Total 283 | 2 262 19 Wait 14 | . 10 4 Move 214 | 2 210 2 Hop . | . . . Pick Up 6 | . 6 . Fast Attach 2 | . 2 . Attach 2 | . . 2 Detach . | . . . Swap 6 | . 5 1 Drop 9 | . 9 . Fire 10 | . 3 7 Melee 20 | . 17 3 Ram . | . . . Kick . | . . . Crush . | . . . Escape Stasis . | . . . Rewire . | . . . Trap . | . . . Miscellaneous . | . . . Route ------- -11/Junkyard -10/Materials -10/Mines History --------- Turn | Location | Event 1 | -11/Junkyard | Discovered new exit (range 1) 4 | -11/Junkyard | Entered Materials 217 | -10/Materials | Discovered new exit (range 10) 330 | -10/Materials | Build established: Mutant 359 | -10/Materials | Entered Mines 360 | -10/Mines | Assembled infested the area 394 | -10/Mines | Core integrity fell below 50% 399 | -10/Mines | Core integrity fell below 20% 399 | -10/Mines | Destroyed by as-02459 with Assembled Heavy Rifle Last Messages --------------- 00371_ as-82361 knocked back. 00373_ Assault Rifle destroyed. 00374_ as-82361 destroyed. 00377_ Lgt. Ion Engine destroyed. 00381_ Aluminum Leg destroyed. 00383_ Destroyed Asb. Hover Unit. 00383_ as-64211 destroyed. 00383_ as-74500 destroyed. 00383_ Aluminum Leg destroyed. 00387_ Acquired 2 matter. 00388_ as-51387 destroyed. 00389_ Destroyed Asb. Hover Unit. 00389_ as-47859 knocked back. 00389_ Visual Processing Unit destroyed. 00389_ System corrupted by crushing effect (+1). 00390_ Overheating: System interference. 00390_ Lgt. Cannon temporarily disabled. 00390_ Critical hit (Destroy). 00390_ Lgt. Cannon destroyed. 00397_ as-47859 destroyed. Map ----- +----------------------------------------------------+ | | | ?????????????????????????????? | | ?????????????????????????????? | | ?????????????????????????????? | | ?????????????????????????????? | | ?????????????????????????????? | | ?????????????????????????????? | | ?????????????????????????????? | | ????# ???????????????????????? | | ???? ???????????????????????? | | ???? ???????????????????????? | | ???? ???????????????????????? | | ????" ???????????????????????? | | ???? ???????????????????????? | | ???? ???????????????????????? | | ???? ???????????????????????? | | ???? #??????????????????????? | | ????# #??????????????????????? | | ????# #??????????????????????? | | ????#a##?????????????????????? | | ???##aa#?????????????????????? | | ???# aa ?????????????????????? | | ???#aaa??????????????????????? | | ???#aaa??????????????????????? | | ???#aa#??????????????????????? | | ???#%@#??????????????????????? | | ???# ##?????????????????????? | | ???# #?????????????????????? | | ???# #????????????????????? | | ???## #????????????????????? | | ????#####????????????????????? | | ?????????????????????????????? | | ?????????????????????????????? | | ?????????????????????????????? | | ?????????????????????????????? | | ?????????????????????????????? | | ?????????????????????????????? | | ?????????????????????????????? | | ?????????????????????????????? | | ?????????????????????????????? | | ?????????????????????????????? | | ?????????????????????????????? | | ?????????????????????????????? | | ?????????????????????????????? | | ?????????????????????????????? | | ?????????????????????????????? | | ?????????????????????????????? | | ?????????????????????????????? | | ?????????????????????????????? | | ?????????????????????????????? | +----------------------------------------------------+ Best States ------------- Heat Dissipation 25 Energy Generation 10 Energy Capacity 125 Matter Stores 300 Matter Capacity 300 Sight Range 18 Terrain Scan Density 10 Evasion (%) 55 Item Schematics ----------------- None Robot Schematics ------------------ None Fabricated ------------ Nothing Alien Tech Used ----------------- None Achievements -------------- Hunted Challenges ------------ None Game ------ Seed SpreadDiametricCompressor Manual? 0 Play Time 00:08:15 Cumulative 98.7 hours Start 2023.07.27 @ 20:13:23 End 2023.07.27 @ 20:20:07 Sessions 1 Manual Loads 0 Difficulty Rogue Special Mode None Game No. 152 Rogue 148 Adventurer 0 Explorer 4 Win Type - Total 0 Types 0/0/0/0/0/0/0/0/0 Lore% 25 Gallery% 41 Achievement% 33 Wizard Run 0 Options --------- ASCII 0 Keyboard 1 Movement Arrows Keybinds 0 Fullscreen 2 Font 24/Smallcaps Map View 113x50 Tactical HUD 1 Map Filters NONE Filters NONE Steam 1 RUN: a140a264-bbf1-4eab-9913-af4853f7c1bd